bitfinex/quotes_ETHUSD_20241001
["timestamp","ask_amount","ask_price","bid_price","bid_amount"]
[1727815064629,8.6128251,2448.6,2447.8,4.08522]
[1727815064867,4.5287251,2448.6,2447.8,4.08522]
[1727815065085,0.4446651,2448.6,2447.2,4.08621]
[1727815065244,4.08439,2448.4,2447.0,1.2358]
[1727815065443,0.0362541,2448.6,2447.0,1.2358]
[1727815065444,4.08488,2448.1,2447.0,1.2358]
[1727815065661,0.03613613,2448.3,2447.4,4.08581]
[1727815065865,4.08523,2447.9,2447.2,4.08629]
[1727815066066,4.08481,2448.1,2447.2,4.08629]
[1727815066371,4.08439,2448.4,2447.6,4.08553]
[1727815066689,0.03596201,2448.0,2447.6,4.08548]
[1727815066847,4.08419,2448.5,2447.5,4.08573]
[1727815066848,4.08461,2448.3,2447.5,4.08573]
[1727815067047,0.03585655,2447.9,2447.5,4.08573]
[1727815067257,4.08366,2448.8,2447.2,4.08614]
[1727815067505,0.408366,2448.7,2447.0,1.2358]
[1727815067655,4.08531,2447.8,2447.0,4.08654]
[1727815067854,4.08575,2447.6,2446.6,4.08727]
[1727815068050,4.08571,2447.6,2446.7,4.08713]
[1727815068245,0.03589807,2447.5,2446.8,4.08694]
[1727815068495,0.03589807,2447.5,2446.5,1.1442]
[1727815068694,0.03589807,2447.5,2446.5,4.08743]
[1727815069002,4.08484,2448.1,2446.1,5.24831]
[1727815069003,4.086,2447.4,2446.1,5.24831]
[1727815069205,4.08566,2447.6,2446.6,4.08717]
[1727815069493,4.08534,2447.8,2447.0,8.17312]
[1727815069693,4.08506,2448.0,2446.6,0.408717]
[1727815069849,4.08344,2449.0,2446.7,4.08704]
[1727815069850,4.08557,2447.7,2446.7,4.08704]
[1727815070052,4.086,2447.4,2446.5,4.08731]
[1727815070375,4.08725,2446.7,2445.9,4.08842]
[1727815070695,4.08819,2446.1,2445.3,4.08943]
[1727815070851,4.08783,2446.3,2445.1,1.2418]
[1727815071053,4.08826,2446.1,2445.1,5.3315]
[1727815071249,4.08826,2446.1,2445.2,4.08963]
[1727815071494,0.408826,2446.1,2444.7,1.2418]
[1727815071659,4.08812,2446.2,2445.4,4.08922]
[1727815071860,4.08771,2446.4,2444.8,0.48981455]
[1727815072190,4.08736,2446.6,2445.7,4.0888]
[1727815072402,4.08668,2447.0,2445.4,4.0893]
[1727815072570,4.08802,2446.2,2444.8,0.48981455]
[1727815072774,0.408802,2446.1,2444.8,1.32837851]
[1727815073066,8.17686,2446.0,2445.1,4.0897]
[1727815073295,4.08847,2445.9,2445.1,4.0897]
[1727815073504,4.08768,2446.4,2444.9,4.09009]
[1727815073505,4.08882,2445.7,2444.9,4.09009]
[1727815073728,4.0891,2445.6,2444.6,4.09058]
[1727815073994,4.08768,2446.4,2444.5,4.09081]
[1727815073995,4.0895,2445.3,2444.5,4.09081]
[1727815074425,4.08887,2445.7,2444.6,4.0906]
[1727815074601,4.08918,2445.5,2444.6,4.0906]
[1727815074768,4.0889,2445.7,2444.8,4.09018]
[1727815074969,4.08853,2445.9,2444.6,0.40906]
[1727815075171,4.08853,2445.9,2444.8,4.09018]
[1727815075488,4.08879,2445.8,2445.0,4.08987]
[1727815075673,4.08817,2446.1,2445.3,4.08946]
[1727815076001,4.08735,2446.6,2444.6,0.40906]
[1727815076002,4.08857,2445.9,2444.9,4.0901]
[1727815076206,4.08866,2445.8,2444.9,8.18014]
[1727815076509,0.4496628,2446.2,2445.4,4.08922]
[1727815076656,4.08816,2446.1,2445.3,4.08947]
[1727815077000,4.08813,2446.2,2445.4,4.08928]
[1727815077199,4.0881,2446.2,2445.3,4.08934]
[1727815077401,4.08773,2446.4,2445.5,4.08911]
[1727815077599,14.60742874,2448.0,2444.6,0.40906]
[1727815077600,6.65402502,2447.6,2445.1,4.08976]
[1727815077811,0.05,2447.9,2444.5,4.54948856]
[1727815077812,4.08924,2445.5,2444.5,4.0907]
[1727815078009,4.08966,2445.2,2444.5,4.0907]
[1727815078304,4.08918,2445.5,2444.6,4.0905]
[1727815078452,4.08889,2445.7,2444.6,4.0905]
[1727815078653,4.08889,2445.7,2444.9,4.09013]
[1727815078898,4.08928,2445.5,2444.3,1.2273]
[1727815079118,4.08903,2445.6,2444.4,3.0]
[1727815079261,4.08903,2445.6,2444.8,4.09017]
[1727815079461,4.08853,2445.9,2444.8,4.908307]
[1727815079800,0.408788,2446.2,2445.2,4.0895]
[1727815079951,0.408788,2446.2,2445.5,4.08904]
[1727815080152,10.74040502,2447.2,2445.5,4.08904]
[1727815080153,4.0877,2446.4,2445.5,4.08903]
[1727815080517,6.65402502,2447.2,2444.8,1.2089]
[1727815080743,8.17844,2445.5,2443.8,4.09186]
[1727815080943,4.09085,2444.5,2443.8,4.09196]
[1727815081250,6.65402502,2445.7,2443.4,4.09249]
[1727815081251,4.09006,2445.0,2443.4,4.09249]
[1727815081456,4.0913,2444.3,2443.3,4.09265]
[1727815081757,4.0913,2444.3,2443.4,4.09264]
[1727815081758,4.09129,2444.3,2443.4,4.09264]
[1727815082039,4.09109,2444.4,2443.4,4.09264]
[1727815082238,0.409006,2444.9,2443.6,4.09222]
[1727815082408,4.08996,2445.1,2443.8,4.0919]
[1727815082740,4.09075,2444.6,2443.7,8.18413]
[1727815082944,4.09075,2444.6,2443.8,4.09182]
[1727815083107,4.09039,2444.8,2443.8,4.09195]
[1727815083296,4.08998,2445.0,2444.2,4.09122]
[1727815083498,4.08972,2445.2,2444.2,4.09122]
[1727815083751,6.65402502,2446.2,2443.4,0.45872856]
[1727815084037,4.09101,2444.4,2443.6,4.09229]
[1727815084205,10.74283502,2445.7,2443.8,4.09183]
[1727815084206,4.08985,2445.1,2443.8,4.09183]
[1727815084537,6.65402502,2445.7,2443.3,1.1288]
[1727815084538,4.09112,2444.4,2443.4,4.09256]
[1727815084737,4.09001,2445.0,2442.9,1.1551]
[1727815084941,7.12103349,2445.7,2442.7,4.09369]
[1727815084942,4.09119,2444.3,2442.7,4.09369]
[1727815085140,4.09119,2444.3,2442.4,1.1551]
[1727815085345,4.09216,2443.7,2442.9,4.09337]
[1727815085496,6.65402502,2444.7,2442.4,1.1551]
[1727815085691,4.0924,2443.6,2442.8,4.09354]
[1727815086005,4.09177,2444.0,2442.4,8.18851]
[1727815086209,4.09282,2443.3,2442.6,4.0939]
[1727815086627,4.09186,2443.9,2442.0,5.05113]
[1727815086790,3.55,2444.5,2441.1,6.65402502]
[1727815086791,6.65402502,2443.6,2441.8,4.09519]
[1727815086995,4.09364,2442.9,2441.6,4.09551]
[1727815087231,4.09427,2442.5,2441.1,4.09645]
[1727815087449,6.65402502,2443.1,2441.2,1.1534948]
[1727815087600,6.65402502,2443.1,2441.6,4.09564]
[1727815087601,8.18814,2442.6,2441.6,4.09564]
[1727815087797,0.6654025,2443.0,2442.0,4.09499]
[1727815087798,4.09373,2442.8,2442.0,4.09499]
[1727815087996,0.6654025,2443.0,2441.4,4.09595]
[1727815088314,4.09317,2443.1,2442.3,4.0944]
[1727815088494,4.09159,2444.1,2442.1,1.0345]
[1727815088495,4.09279,2443.4,2442.1,1.0345]
[1727815088700,0.409279,2443.4,2442.3,4.09444]
[1727815088923,4.09272,2443.4,2442.6,4.09389]
[1727815089125,6.65402502,2444.6,2442.8,4.09362]
[1727815089331,6.65402502,2444.6,2442.5,4.0941]
[1727815089332,4.09247,2443.6,2442.5,4.0941]
[1727815089494,4.09326,2443.1,2442.1,5.12928]
[1727815089713,4.09238,2443.6,2442.1,5.12927]
[1727815089914,4.09385,2442.7,2441.9,4.09503]
[1727815090112,4.0934,2443.0,2441.4,4.09599]
[1727815090440,0.409238,2443.5,2441.3,1.0179]
[1727815090596,4.09508,2442.0,2441.3,4.09608]
[1727815090798,4.09508,2442.0,2441.2,0.1189948]
[1727815090799,4.09583,2441.6,2441.2,0.1189948]
[1727815091047,4.09545,2441.8,2441.2,0.1189948]
[1727815091251,4.09562,2441.7,2441.2,0.1189948]
[1727815091396,7.09372,2442.8,2441.2,0.1189948]
[1727815091397,4.09612,2441.4,2441.2,0.1189948]
[1727815091597,4.09617,2441.3,2441.2,0.1189948]
[1727815092263,4.09617,2441.3,2439.5,1.0242]
[1727815092264,4.0959,2441.5,2440.2,0.44222856]
[1727815092478,4.0959,2441.5,2438.8,0.1239948]
[1727815092479,0.55,2441.4,2439.4,4.09935]
[1727815092681,4.0974,2440.6,2439.1,4.54207856]
[1727815092866,0.46459,2441.3,2438.8,4.2243048]
[1727815092867,4.09875,2439.8,2438.9,4.10007]
[1727815093180,4.09875,2439.8,2438.8,0.1239948]
[1727815093181,4.09851,2440.0,2438.8,0.1239948]
[1727815093365,0.55,2439.7,2438.8,0.1239948]
[1727815093686,4.1002,2438.9,2438.8,0.1239948]
[1727815093883,4.10121,2438.4,2437.4,4.10271]
[1727815094181,4.10035,2438.9,2437.8,4.10205]
[1727815094388,4.10035,2438.9,2437.3,5.15347]
[1727815094389,4.1002,2438.9,2437.3,5.15347]
[1727815094539,3.0,2439.2,2437.4,4.10273]
[1727815094744,4.10135,2438.3,2437.3,4.10286]
[1727815095079,4.10085,2438.6,2437.1,0.56090972]
[1727815095290,4.10151,2438.2,2437.1,4.10309]
[1727815095440,4.10136,2438.3,2436.8,1.0506]
[1727815095441,4.10136,2438.3,2437.3,4.10288]
[1727815095635,4.10194,2437.9,2436.9,4.10344]
[1727815095880,0.409545,2437.8,2436.5,4.10416]
[1727815096049,4.10158,2438.1,2437.1,4.10314]
[1727815096381,4.10172,2438.0,2437.1,4.10314]
[1727815096595,11.19523603,2439.1,2436.4,4.10441]
[1727815096596,4.10112,2438.4,2436.4,6.65402502]
[1727815096891,4.10059,2438.7,2436.9,4.10347]
[1727815097037,4.54122101,2439.1,2438.0,4.10163]
[1727815097238,4.09958,2439.3,2438.0,4.10163]
[1727815097494,4.52550117,2439.5,2438.4,4.10092]
[1727815097636,6.65402502,2439.6,2436.8,6.65402502]
[1727815097836,0.57389521,2439.5,2437.4,4.1027]
[1727815098042,4.10027,2438.9,2436.7,1.0211]
[1727815098354,4.10175,2438.0,2437.0,4.10325]
[1727815098555,4.10027,2438.9,2436.3,6.77301982]
[1727815098556,0.57389521,2438.9,2436.4,4.10429]
[1727815098750,6.65402502,2439.1,2436.3,0.1189948]
[1727815098751,0.55,2437.1,2436.3,0.1189948]
[1727815098964,0.55,2437.6,2436.3,0.1189948]
[1727815099149,4.10303,2437.3,2436.3,4.2235348]
[1727815099353,0.55,2437.1,2436.3,0.1189948]
[1727815099594,0.55,2437.1,2435.6,4.84741736]
[1727815099595,4.10459,2436.3,2435.6,4.84741736]
[1727815099775,4.10541,2435.9,2435.6,4.84741736]
[1727815099973,4.10492,2436.1,2435.6,4.84741736]
[1727815100223,0.410459,2436.2,2435.6,4.84741736]
[1727815100419,7.65559,2435.7,2435.6,1.03549302]
[1727815100588,0.55,2435.7,2435.0,0.1103]
[1727815100773,3.410459,2436.2,2435.0,0.1103]
[1727815100774,4.10555,2435.8,2435.0,0.1103]
[1727815100974,0.410459,2436.2,2433.7,1.0377]
[1727815100975,4.10629,2435.3,2433.7,1.0377]
[1727815101191,0.410459,2436.2,2434.2,6.65402502]
[1727815101393,2.0,2437.8,2432.7,6.70402502]
[1727815101394,4.10428,2436.5,2434.8,1.32619314]
[1727815101724,4.10468,2436.3,2435.2,4.10628]
[1727815102037,4.10527,2435.9,2435.0,4.10675]
[1727815102187,4.10516,2436.0,2435.0,4.10675]
[1727815102529,4.10511,2436.0,2435.0,4.10673]
[1727815102817,4.10296,2437.3,2435.3,4.10621]
[1727815103025,18.25277574,2438.3,2435.3,4.10621]
[1727815103026,4.09922,2439.5,2437.2,6.65402502]
[1727815103181,4.09922,2439.5,2438.5,4.10077]
[1727815103379,4.09702,2440.8,2438.5,4.10077]
[1727815103380,1.643605,2440.9,2438.9,6.65402502]
[1727815103679,4.0962,2441.3,2439.8,4.09869]
[1727815103880,14.60742874,2442.7,2439.8,4.09869]
[1727815104082,6.65402502,2443.2,2440.1,3.0]
[1727815104398,2.5279,2443.5,2439.4,6.65402502]
[1727815104399,4.09406,2442.6,2441.2,4.0963]
[1727815104611,4.09406,2442.6,2440.8,1.0027]
[1727815104612,4.09435,2442.4,2441.0,4.09663]
[1727815104813,0.409406,2442.5,2440.8,4.0027]
[1727815105017,4.09393,2442.7,2441.3,4.09603]
[1727815105186,6.65402502,2442.6,2439.9,1.0483]
[1727815105385,6.65402502,2442.6,2440.0,4.09829]
[1727815105386,4.09604,2441.4,2440.0,4.09829]
[1727815105723,4.09499,2442.1,2439.7,4.09882]
[1727815105724,4.48618184,2441.3,2439.7,4.09882]
[1727815105893,4.09635,2441.2,2439.4,1.0483]
[1727815106100,0.409635,2441.1,2439.4,1.0483]
[1727815106609,4.09606,2441.4,2439.4,1.0483]
[1727815106827,4.0935,2442.9,2439.4,1.0483]
[1727815106995,6.65402502,2442.6,2439.9,4.09838]
[1727815107215,6.65402502,2442.6,2439.5,0.55]
[1727815107216,6.65402502,2443.1,2440.5,4.09736]
[1727815107416,4.09451,2442.3,2441.1,4.0965]
[1727815107602,1.08960171,2443.0,2441.1,4.09639]
[1727815107958,4.09467,2442.2,2441.1,4.09648]
[1727815108243,4.09445,2442.4,2441.2,4.09634]
[1727815108448,4.09423,2442.5,2440.3,4.0977]
[1727815108449,0.818868,2442.3,2440.3,4.0977]
[1727815108615,4.09577,2441.6,2440.3,4.0977]
[1727815108819,1.30090054,2442.3,2439.8,5.09781]
[1727815108820,0.57153254,2441.5,2439.8,0.9992]
[1727815109300,0.818868,2442.3,2440.0,4.09827]
[1727815109301,4.09534,2441.8,2440.0,4.09827]
[1727815109506,0.409534,2441.7,2440.3,4.09775]
[1727815109750,4.09483,2442.1,2440.8,4.09697]
[1727815110059,0.818868,2442.3,2441.4,4.096]
[1727815110221,4.09364,2442.9,2441.4,4.096]
[1727815110546,6.77301982,2443.6,2440.8,0.9795]
[1727815110547,4.09418,2442.5,2441.0,4.09664]
[1727815110748,4.09467,2442.2,2441.0,4.09664]
[1727815110959,4.09484,2442.1,2440.8,5.0765]
[1727815111109,4.09484,2442.1,2440.3,1.0521]
[1727815111110,0.409484,2442.0,2440.3,1.0521]
[1727815111309,4.09639,2441.2,2439.9,4.0985]
[1727815111617,0.409484,2442.0,2440.0,4.09819]
[1727815111819,0.55,2441.4,2440.0,4.09819]
[1727815112023,4.09699,2440.9,2439.6,4.09899]
[1727815112239,0.55,2441.6,2439.7,4.09878]
[1727815112240,0.409699,2440.8,2439.7,4.09878]
[1727815112412,4.0963,2441.3,2439.5,4.09917]
[1727815112609,0.55,2441.4,2440.0,4.09833]
[1727815112844,0.55,2441.6,2440.1,4.09819]
[1727815113148,0.55,2441.6,2439.7,4.09884]
[1727815113362,4.64572,2441.6,2440.3,4.09772]
[1727815113508,0.874124,2441.5,2440.3,4.09772]
[1727815113708,0.55,2441.8,2440.5,4.09749]
[1727815113908,4.09534,2441.8,2440.5,4.09749]
[1727815114452,0.409484,2442.0,2440.2,0.9776]
[1727815114750,4.0958,2441.6,2440.2,0.9776]
[1727815114908,4.09587,2441.5,2440.3,4.09785]
[1727815115106,4.09628,2441.3,2440.2,0.9776]
[1727815115312,4.09584,2441.5,2439.7,5.07311]
[1727815115539,4.505644,2441.4,2439.8,4.09865]
[1727815115755,4.09719,2440.7,2439.7,0.9743]
[1727815116050,4.09719,2440.7,2439.3,4.09937]
[1727815116051,4.64736,2440.6,2439.3,4.09937]
[1727815116349,4.64736,2440.6,2439.0,4.10003]
[1727815116350,4.0983,2440.1,2439.0,4.10003]
[1727815116507,0.40983,2440.0,2439.2,4.0997]
[1727815116857,10.74979502,2441.6,2439.0,0.7564]
[1727815117148,10.74979502,2441.6,2438.8,6.65402502]
[1727815117149,8.19251,2441.3,2439.9,0.785]
[1727815117354,0.55,2441.2,2439.9,0.785]
[1727815117557,0.55,2441.3,2439.9,0.785]
[1727815117720,4.09503,2442.0,2439.9,0.785]
[1727815117922,0.409503,2441.9,2440.7,4.09705]
[1727815118132,0.409503,2441.9,2440.4,4.09754]
[1727815118333,0.409503,2441.9,2440.3,4.09782]
[1727815118574,0.52061445,2442.5,2440.2,4.88291]
[1727815118755,4.09352,2442.9,2440.5,4.09739]
[1727815118756,4.09503,2442.0,2440.5,4.09739]
[1727815118955,4.09368,2442.8,2440.4,4.09768]
[1727815119155,6.65402502,2443.1,2440.6,4.09732]
[1727815119156,4.09471,2442.2,2440.6,4.09732]
[1727815119683,4.09405,2442.6,2441.1,4.09635]
[1727815119878,0.07099654,2443.4,2441.2,0.7778]
[1727815119879,4.09435,2442.4,2441.2,0.7778]
[1727815120159,4.09428,2442.5,2441.2,0.7778]
[1727815120694,4.09464,2442.3,2441.2,0.7778]
[1727815120886,4.09488,2442.1,2441.2,0.7778]
[1727815121048,4.09423,2442.5,2441.2,0.7778]
[1727815121391,4.09444,2442.4,2441.2,0.7778]
[1727815121603,4.09438,2442.4,2441.2,0.7778]
[1727815121747,4.09433,2442.4,2441.2,0.7778]
[1727815121948,4.09423,2442.5,2441.2,0.7778]
[1727815122146,0.409423,2442.4,2441.3,4.09606]
[1727815122499,4.09387,2442.7,2441.2,0.7778]
[1727815122500,4.09414,2442.6,2441.2,4.87413]
[1727815122795,4.09284,2443.3,2441.2,0.7778]
[1727815123097,4.09284,2443.3,2441.2,4.87401]
[1727815123098,4.09391,2442.7,2441.2,4.87401]
[1727815123400,4.09358,2442.9,2441.6,4.09552]
[1727815123547,4.09315,2443.2,2441.8,4.09523]
[1727815123744,5.29118408,2443.4,2441.4,7.0959]
[1727815123745,0.409315,2443.1,2442.1,4.09481]
[1727815124107,4.09268,2443.4,2441.9,0.8006]
[1727815124108,4.0936,2442.9,2441.9,0.8006]
[1727815124389,4.09374,2442.8,2441.9,0.8006]
[1727815124595,4.09374,2442.8,2441.1,3.0]
[1727815124596,4.09444,2442.4,2441.1,4.0964]
[1727815124745,4.09485,2442.1,2441.5,0.8006]
[1727815124946,0.409485,2442.0,2441.2,0.8006]
[1727815125349,4.09467,2442.2,2441.2,0.8006]
[1727815125541,4.09455,2442.3,2441.2,0.8006]
[1727815125740,3.0,2442.9,2441.2,0.8006]
[1727815125741,4.09498,2442.1,2441.2,0.8006]
[1727815125969,4.0946,2442.3,2441.2,0.8006]
[1727815126402,4.0936,2442.9,2441.2,0.8006]
[1727815126546,4.0936,2442.9,2441.3,0.8217]
[1727815126547,0.40936,2442.8,2441.3,0.8217]
[1727815126748,0.40936,2442.8,2441.2,10.75026502]
[1727815126749,0.40936,2442.8,2442.1,4.09473]
[1727815126993,0.5279,2443.5,2440.9,0.40512258]
[1727815126994,4.62045,2443.5,2442.2,0.7616]
[1727815127155,0.5279,2443.5,2442.2,0.7616]
[1727815127356,4.09345,2443.0,2442.2,0.7616]
[1727815127677,4.09345,2443.0,2441.4,4.09588]
[1727815127678,4.09434,2442.4,2441.4,4.09588]
[1727815127885,4.09477,2442.2,2441.3,0.7616]
[1727815128085,8.18882,2442.4,2441.3,0.7616]
[1727815128393,0.818882,2442.3,2441.5,4.09573]
[1727815128560,4.09629,2441.3,2440.5,0.7769]
[1727815128890,4.09589,2441.5,2440.5,0.7769]
[1727815129060,0.409589,2441.4,2440.5,0.7769]
[1727815129261,0.409589,2441.4,2439.9,0.005]
[1727815129262,4.0959,2441.5,2439.9,0.005]
[1727815129470,3.55,2441.2,2439.9,0.005]
[1727815129744,0.55,2441.2,2439.9,0.005]
[1727815129911,4.09781,2440.4,2439.9,0.005]
[1727815130051,4.09713,2440.8,2439.9,0.005]
[1727815130258,0.55,2440.9,2439.9,0.005]
[1727815130556,0.55,2439.9,2438.9,0.7769]
[1727815130756,0.55,2439.9,2437.9,0.8247]
[1727815130757,10.75274502,2439.8,2437.9,0.8247]
[1727815131039,10.75274502,2439.8,2436.5,4.10418]
[1727815131040,4.10109,2438.4,2436.5,4.10418]
[1727815131328,4.10109,2438.4,2436.4,0.8247]
[1727815131329,4.10155,2438.1,2436.4,0.8247]
[1727815131626,4.10155,2438.1,2436.9,4.1035]
[1727815131971,4.65155,2438.1,2436.7,4.1039]
[1727815132421,4.10237,2437.7,2436.5,4.10423]
[1727815132623,4.65155,2438.1,2436.4,0.8247]
[1727815132624,4.10215,2437.8,2436.8,4.10359]
[1727815132779,3.55,2439.6,2436.9,0.7753]
[1727815133124,3.55,2439.6,2437.0,4.10334]
[1727815133125,4.10185,2438.0,2437.0,4.10334]
[1727815133272,4.1019,2437.9,2437.0,4.10334]
[1727815133692,7.65021,2438.9,2436.9,0.7753]
[1727815133693,4.10272,2437.5,2436.9,0.7753]
[1727815133934,4.321,2437.9,2436.5,0.7625]
[1727815134145,3.55,2438.0,2436.1,4.1048]
[1727815134146,4.1033,2437.1,2436.1,4.1048]
[1727815134307,4.1033,2437.1,2436.0,0.8122]
[1727815134308,4.10288,2437.4,2436.6,4.10403]
[1727815134497,4.10288,2437.4,2436.5,4.10424]
[1727815134694,4.10268,2437.5,2436.0,0.8122]
[1727815134894,3.0,2438.1,2436.3,4.10451]
[1727815134895,4.10309,2437.2,2436.3,4.10451]
[1727815135098,4.10309,2437.2,2436.4,4.1044]
[1727815135332,4.10309,2437.2,2436.0,0.8122]
[1727815135333,4.10272,2437.5,2436.0,0.8122]
[1727815135495,4.10272,2437.5,2435.6,4.10566]
[1727815135496,4.10225,2437.7,2436.8,4.10366]
[1727815135690,4.10164,2438.1,2437.3,4.10273]
[1727815135947,6.65402502,2439.2,2436.9,4.91561]
[1727815135948,4.10195,2437.9,2436.9,4.91561]
[1727815136236,4.10195,2437.9,2437.0,4.10329]
[1727815136395,4.10157,2438.1,2436.9,0.8122]
[1727815136602,4.1013,2438.3,2437.4,4.1026]
[1727815136893,4.10084,2438.6,2436.8,4.10361]
[1727815136894,4.10084,2438.6,2437.7,4.10216]
[1727815137127,0.410084,2438.5,2437.9,0.7533]
[1727815137935,0.410084,2438.5,2437.9,4.85518]
[1727815138150,4.09982,2439.2,2438.4,4.101]
[1727815138291,4.09991,2439.1,2438.3,4.10107]
[1727815138492,4.10012,2439.0,2438.1,4.10155]
[1727815138695,4.10034,2438.9,2438.1,4.10155]
[1727815139237,0.409991,2439.0,2438.3,4.10109]
[1727815139438,4.09925,2439.5,2438.6,4.10067]
[1727815139639,4.09746,2440.6,2437.6,3.0]
[1727815139640,4.0984,2440.0,2438.7,0.8126]
[1727815139947,4.09856,2439.9,2439.2,4.09959]
[1727815140245,4.09818,2440.2,2439.4,4.09931]
[1727815140246,4.0981,2440.2,2439.4,4.09931]
[1727815140549,19.53,2442.0,2438.6,0.753]
[1727815140550,4.09824,2440.1,2438.6,0.753]
[1727815140749,4.09824,2440.1,2438.1,0.753]
[1727815140750,0.409824,2440.0,2438.1,0.753]
[1727815141045,4.10117,2438.4,2438.1,0.753]
[1727815141264,4.10117,2438.4,2437.6,4.10232]
[1727815141265,4.10117,2438.4,2437.7,4.1021]
[1727815141542,10.75299502,2439.7,2437.5,0.7728]
[1727815141543,4.1007,2438.7,2437.6,4.10227]
[1727815141761,4.10023,2438.9,2438.1,4.10141]
[1727815142098,1.0752995,2439.6,2438.7,4.10042]
[1727815142299,4.09928,2439.5,2438.7,4.10042]
[1727815142529,4.5241324,2440.4,2438.2,0.8006]
[1727815142530,4.09888,2439.7,2438.9,4.10006]
[1727815142728,4.09944,2439.4,2438.7,4.10048]
[1727815142904,4.09916,2439.6,2438.7,4.10048]
[1727815143106,4.09842,2440.0,2438.3,4.10117]
[1727815143401,0.409842,2439.9,2439.2,0.7982]
[1727815143601,4.09722,2440.7,2439.2,0.7982]
[1727815143852,4.09856,2439.9,2439.2,4.89782]
[1727815144142,4.09872,2439.8,2439.2,0.7982]
[1727815144642,4.09731,2440.7,2439.2,0.7982]
[1727815144911,4.09846,2440.0,2439.2,4.89774]
[1727815145066,0.409731,2440.6,2439.2,4.89774]
[1727815145067,4.09811,2440.2,2439.2,0.7982]
[1727815145269,4.09769,2440.4,2439.7,4.0988]
[1727815145580,4.09744,2440.6,2440.0,4.09832]
[1727815145860,4.09744,2440.6,2439.2,4.89782]
[1727815145861,4.09712,2440.8,2439.5,4.09915]
[1727815146030,4.09769,2440.4,2439.7,4.09873]
[1727815146364,4.09769,2440.4,2439.6,0.8168]
[1727815146365,8.1945,2440.7,2439.6,0.8168]
[1727815146572,4.09815,2440.2,2439.6,0.8168]
[1727815146873,0.409636,2441.1,2439.6,0.8168]
[1727815147035,4.09829,2440.1,2439.6,0.8168]
[1727815147244,4.09815,2440.2,2439.1,0.8349]
[1727815147546,4.09783,2440.4,2439.1,0.8349]
[1727815147916,8.19482,2440.6,2439.9,4.87409]
[1727815148117,8.19482,2440.6,2439.4,4.0993]
[1727815148118,4.09807,2440.2,2439.4,0.7757]
[1727815148329,4.507305,2440.5,2439.0,0.7757]
[1727815148330,4.09969,2439.3,2439.0,0.7757]
[1727815148643,4.10008,2439.0,2438.6,0.8558]
[1727815148830,4.0998,2439.2,2438.5,4.10086]
[1727815149232,0.55,2440.1,2438.4,4.95672]
[1727815149233,4.09924,2439.5,2438.4,0.8558]
[1727815149434,4.09981,2439.2,2438.4,0.8558]
[1727815149734,7.09868,2439.9,2438.4,0.8558]
[1727815149735,4.09946,2439.4,2438.8,4.10022]
[1727815150074,4.09946,2439.4,2438.4,0.8558]
[1727815150075,4.09878,2439.8,2438.4,4.9568]
[1727815150378,4.09913,2439.6,2438.2,0.7793]
[1727815150596,4.09904,2439.6,2438.9,0.7845]
[1727815150875,4.09904,2439.6,2439.0,4.09999]
[1727815150876,4.09912,2439.6,2439.0,4.09999]
[1727815151082,4.09912,2439.6,2438.9,0.7845]
[1727815151083,4.09774,2440.4,2438.9,0.7845]
[1727815151246,0.409735,2440.5,2438.9,0.7845]
[1727815151247,4.09997,2439.1,2438.9,0.7845]
[1727815151890,4.09987,2439.1,2437.6,0.8543]
[1727815152185,4.65008,2439.0,2437.6,0.8543]
[1727815152480,4.10285,2437.4,2437.1,0.8261]
[1727815152637,4.10246,2437.6,2436.4,0.8261]
[1727815152975,3.0,2438.4,2436.4,0.8261]
[1727815152976,4.10275,2437.4,2436.4,0.8261]
[1727815153162,3.0,2437.7,2436.4,0.8261]
[1727815153163,4.10354,2437.0,2436.4,0.8261]
[1727815153372,4.6518,2438.0,2435.8,0.8261]
[1727815153373,3.0,2437.3,2435.8,0.8261]
[1727815153536,6.65402502,2437.4,2435.5,4.10591]
[1727815153537,4.10489,2436.2,2435.5,4.10591]
[1727815153733,4.10489,2436.2,2435.4,0.8261]
[1727815153734,4.1049,2436.2,2435.4,0.8261]
[1727815153934,4.1049,2436.2,2435.9,0.005]
[1727815154281,4.10425,2436.5,2435.9,0.005]
[1727815154436,0.55,2437.1,2435.9,0.005]
[1727815154643,4.10493,2436.1,2435.9,0.005]
[1727815154841,4.10459,2436.3,2435.9,0.005]
[1727815155137,4.10507,2436.1,2435.9,0.005]
[1727815155374,4.515577,2436.1,2435.9,0.005]
[1727815155585,4.10507,2436.1,2435.9,0.005]
[1727815155756,3.0,2436.9,2435.9,0.005]
[1727815155757,4.1036,2436.9,2435.9,0.005]
[1727815155938,0.55,2437.2,2435.9,0.005]
[1727815155939,4.10509,2436.0,2435.9,0.005]
[1727815157075,4.10491,2436.2,2435.9,0.005]
[1727815157282,4.10509,2436.0,2435.9,0.005]
[1727815157477,4.10446,2436.4,2435.9,0.005]
[1727815158200,4.10446,2436.4,2435.1,4.10647]
[1727815158400,4.10446,2436.4,2434.9,4.1069]
[1727815158401,4.10483,2436.2,2435.5,4.1059]
[1727815158557,4.10444,2436.4,2435.7,4.10547]
[1727815158764,6.65402502,2438.4,2435.5,6.65402502]
[1727815159002,4.10311,2437.2,2435.7,4.10554]
[1727815159212,4.10346,2437.0,2436.1,4.10481]
[1727815159419,4.10346,2437.0,2436.2,4.10474]
[1727815159570,4.10315,2437.2,2436.5,4.1042]
[1727815159768,4.10184,2438.0,2436.1,4.10479]